Workbook

Sheet Sheet1
A1: 监测日期：2022-12-01
A2: 序号 | B2: 企业名称 | C2: 监控点名称 | D2: 流量(M3) | E2: 氨氮(mg/L) | G2: 化学需氧量(mg/L) | I2: 总氮(mg/L) | K2: 总磷(mg/L) | M2: 生产状态
E3: 浓度 | F3: 限值 | G3: 浓度 | H3: 限值 | I3: 浓度 | J3: 限值 | K3: 浓度 | L3: 限值
A4: =MAX($A$3:A3)+1 -> 1 | B4: 广东伊利乳业有限责任公司 | C4: 废水排放口 | D4: 1750.021 | E4: 0.101 | F4: 25 | G4: 34.663 | H4: 250 | I4: 11.877 | J4: 40 | K4: - | L4: - | M4: 正常
A5: =MAX($A$3:A4)+1 -> 2 | B5: 惠东县东进保鲜肉类有限公司 | C5: 直接排放口 | D5: - | E5: 0 | F5: 10 | G5: 0 | H5: 70 | I5: - | J5: - | K5: - | L5: - | M5: 停机
B6: 惠东县东进保鲜肉类有限公司 | C6: 综合废水间接排放口 | D6: 164.8 | E6: 116.36 | F6: 500 | G6: 57.74 | H6: 500 | I6: 90.855 | J6: 500 | K6: 7.6 | L6: 200 | M6: 正常
A7: =MAX($A$3:A6)+1 -> 3 | B7: 惠东县合鑫五金制品有限公司 | C7: 废水排放口3 | D7: 6.842 | E7: 0.01 | F7: 15 | G7: 14.828 | H7: 80 | I7: - | J7: - | K7: - | L7: - | M7: 正常
B8: 惠东县合鑫五金制品有限公司 | C8: 废水排放口1 | D8: 6.852 | E8: - | F8: - | G8: - | H8: - | I8: - | J8: - | K8: - | L8: - | M8: 正常
B9: 惠东县合鑫五金制品有限公司 | C9: 废水排放口2 | D9: 0 | E9: - | F9: - | G9: - | H9: - | I9: - | J9: - | K9: - | L9: - | M9: 正常
A10: =MAX($A$3:A9)+1 -> 4 | B10: 惠东县鸿运昇染厂 | C10: 总排放口 | D10: 137.38 | E10: 0.323 | F10: 10 | G10: 32.64 | H10: 80 | I10: - | J10: - | K10: - | L10: - | M10: 正常
A11: =MAX($A$3:A10)+1 -> 5 | B11: 惠东县建良兴染织厂 | C11: 综合废水排放口 | D11: 0.007 | E11: 3.372 | F11: 10 | G11: 41.156 | H11: 80 | I11: - | J11: - | K11: - | L11: - | M11: 正常
A12: =MAX($A$3:A11)+1 -> 6 | B12: 博罗县腾进电子有限公司 | C12: 排放口 | D12: 227.664 | E12: 0.07 | F12: 5 | G12: 19.795 | H12: 50 | I12: 4.453 | J12: 15 | K12: 0.057 | L12: 0.5 | M12: 正常
B13: 博罗县腾进电子有限公司 | C13: 含镍废水排放口 | D13: 0 | E13: - | F13: - | G13: - | H13: - | I13: - | J13: - | K13: - | L13: - | M13: 正常
A14: =MAX($A$3:A13)+1 -> 7 | B14: 博罗县园洲天旺纺织有限公司 | C14: 排放口 | D14: - | E14: 0 | F14: 10 | G14: 0 | H14: 80 | I14: - | J14: - | K14: - | L14: - | M14: 停机
A15: =MAX($A$3:A14)+1 -> 8 | B15: 博罗县园洲镇成就纺织印染有限公司 | C15: 排放口 | D15: 49.25 | E15: 2.56 | F15: 10 | G15: 21.22 | H15: 80 | I15: 8.54 | J15: 15 | K15: 0.041 | L15: 0.5 | M15: 正常
A16: =MAX($A$3:A15)+1 -> 9 | B16: 博罗县园洲镇东红绿色针织厂有限公司 | C16: 排放口 | D16: 247.1 | E16: 1.15 | F16: 10 | G16: 26.47 | H16: 80 | I16: 7.2 | J16: 15 | K16: 0.086 | L16: 0.5 | M16: 正常
A17: =MAX($A$3:A16)+1 -> 10 | B17: 奥士康精密电路(惠州)有限公司 | C17: 废水排放口 | D17: - | E17: 0 | F17: 10 | G17: 0 | H17: 80 | I17: - | J17: - | K17: - | L17: - | M17: 停机
A18: =MAX($A$3:A17)+1 -> 11 | B18: 惠州市百明珲精密部件有限公司 | C18: 总排放口 | D18: 10.542 | E18: 0.335 | F18: 10 | G18: 42.062 | H18: 80 | I18: - | J18: - | K18: - | L18: - | M18: 正常
A19: =MAX($A$3:A18)+1 -> 12 | B19: 柏承电子（惠阳）有限公司 | C19: 废水总排放口 | D19: 97.459 | E19: 0.297 | F19: 10 | G19: 29.917 | H19: 80 | I19: - | J19: - | K19: - | L19: - | M19: 正常
A20: =MAX($A$3:A19)+1 -> 13 | B20: 班信科技（惠州）有限公司 | C20: 排放口 | D20: 38.02 | E20: 0.009 | F20: 10 | G20: 12.771 | H20: 80 | I20: - | J20: - | K20: 0.179 | L20: 1 | M20: 正常
B21: 班信科技（惠州）有限公司 | C21: 车间废水排放口 | D21: 0 | E21: - | F21: - | G21: - | H21: - | I21: - | J21: - | K21: - | L21: - | M21: 正常
A22: =MAX($A$3:A21)+1 -> 14 | B22: 伯恩高新科技（惠州）有限公司永湖分厂 | C22: 废水总排放口 | D22: 1023.754 | E22: 0.012 | F22: 1.5 | G22: 8.749 | H22: 30 | I22: - | J22: - | K22: 0.178 | L22: 0.5 | M22: 正常
A23: =MAX($A$3:A22)+1 -> 15 | B23: 伯恩光学（惠州）有限公司 | C23: 废水排放 | D23: 6119.79 | E23: 0.223 | F23: 10 | G23: 17.485 | H23: 90 | I23: - | J23: - | K23: - | L23: - | M23: 正常
A24: =MAX($A$3:A23)+1 -> 16 | B24: 博罗县园洲镇炜和染印有限公司 | C24: 总排放口 | D24: - | E24: 0 | F24: 10 | G24: 0 | H24: 80 | I24: 0 | J24: 15 | K24: 0 | L24: 0.5 | M24: 停机
A25: =MAX($A$3:A24)+1 -> 17 | B25: 博罗县园洲镇新大江毛纺织洗染厂 | C25: 排放口 | D25: - | E25: 0 | F25: 10 | G25: 0 | H25: 80 | I25: - | J25: - | K25: - | L25: - | M25: 停机
A26: =MAX($A$3:A25)+1 -> 18 | B26: 博罗复扬针织漂染有限公司 | C26: 排放口 | D26: 788.83 | E26: 0.799 | F26: 10 | G26: 17.06 | H26: 80 | I26: 6.64 | J26: 15 | K26: - | L26: - | M26: 正常
A27: =MAX($A$3:A26)+1 -> 19 | B27: 博罗广隆实业有限公司（大发纺织印染厂） | C27: 废水总排放口 | D27: 1065.31 | E27: 0.193 | F27: 10 | G27: 69.962 | H27: 80 | I27: - | J27: - | K27: 0.083 | L27: 0.5 | M27: 正常
A28: =MAX($A$3:A27)+1 -> 20 | B28: 博罗石湾大兴漂染有限公司 | C28: 排放口 | D28: 143.42 | E28: 5.648 | F28: 10 | G28: 28.15 | H28: 80 | I28: - | J28: - | K28: - | L28: - | M28: 正常
A29: =MAX($A$3:A28)+1 -> 21 | B29: 博罗五达纺织印染有限公司 | C29: 排放口 | D29: 69.98 | E29: 0.59 | F29: 10 | G29: 10.171 | H29: 80 | I29: 1.292 | J29: 15 | K29: - | L29: - | M29: 正常
A30: =MAX($A$3:A29)+1 -> 22 | B30: 博罗县安科五金塑胶表面处理有限公司 | C30: 排放口 | D30: 37.15 | E30: 0.21 | F30: 10 | G30: 24.886 | H30: 80 | I30: 11.016 | J30: 20 | K30: 0.014 | L30: 1 | M30: 正常
B31: 博罗县安科五金塑胶表面处理有限公司 | C31: 镍废水排放口 | D31: 0 | E31: - | F31: - | G31: - | H31: - | I31: - | J31: - | K31: - | L31: - | M31: 正常
B32: 博罗县安科五金塑胶表面处理有限公司 | C32: 含铬废水排放口 | D32: 14.17 | E32: - | F32: - | G32: - | H32: - | I32: - | J32: - | K32: - | L32: - | M32: 正常
A33: =MAX($A$3:A32)+1 -> 23 | B33: 惠阳伊华时尚首饰有限公司 | C33: 总排放口 | D33: 1.561 | E33: 3.257 | F33: 15 | G33: 17.672 | H33: 80 | I33: - | J33: - | K33: - | L33: - | M33: 正常
B34: 惠阳伊华时尚首饰有限公司 | C34: 车间排放口 | D34: 0 | E34: - | F34: - | G34: - | H34: - | I34: - | J34: - | K34: - | L34: - | M34: 正常
B35: 惠阳伊华时尚首饰有限公司 | C35: 车间排放口2 | D35: 0 | E35: - | F35: - | G35: - | H35: - | I35: - | J35: - | K35: - | L35: - | M35: 正常
B36: 惠阳伊华时尚首饰有限公司 | C36: 车间排放口3 | D36: 0.141 | E36: - | F36: - | G36: - | H36: - | I36: - | J36: - | K36: - | L36: - | M36: 正常
A37: =MAX($A$3:A36)+1 -> 24 | B37: 惠阳钰原工业有限公司 | C37: 废水总排放口 | D37: 30.067 | E37: 0.013 | F37: 10 | G37: 3.841 | H37: 80 | I37: 3.032 | J37: 20 | K37: 0.019 | L37: 1 | M37: 正常
B38: 惠阳钰原工业有限公司 | C38: 总镍排放口 | D38: 57.89 | E38: - | F38: - | G38: - | H38: - | I38: - | J38: - | K38: - | L38: - | M38: 正常
B39: 惠阳钰原工业有限公司 | C39: 总铬排放口 | D39: 184.9 | E39: - | F39: - | G39: - | H39: - | I39: - | J39: - | K39: - | L39: - | M39: 正常
A40: =MAX($A$3:A39)+1 -> 25 | B40: 惠州比亚迪实业有限公司（一期工业园） | C40: 工业废水排放口 | D40: 462.24 | E40: 0.013 | F40: 10 | G40: 35.1 | H40: 70 | I40: 1.139 | J40: 15 | K40: - | L40: - | M40: 正常
A41: =MAX($A$3:A40)+1 -> 26 | B41: 惠州创发汽车零部件有限公司 | C41: 排放口 | D41: - | E41: 0 | F41: 15 | G41: 0 | H41: 80 | I41: - | J41: - | K41: - | L41: - | M41: 停机
A42: =MAX($A$3:A41)+1 -> 27 | B42: 惠州大亚湾清源环保有限公司 | C42: 废水排放口 | D42: 7679.99 | E42: 0.437 | F42: 8.629 | G42: 28.758 | H42: 69.431 | I42: 2.63 | J42: 27.416 | K42: 0.283 | L42: 0.5 | M42: 正常
B43: 惠州大亚湾清源环保有限公司 | C43: 综合废水进水口 | D43: 2507.16 | E43: 8.963 | F43: 500 | G43: 107.111 | H43: 1000 | I43: - | J43: - | K43: - | L43: - | M43: 正常
A44: =MAX($A$3:A43)+1 -> 28 | B44: 惠州东和数码科技有限公司 | C44: 排放口 | D44: 465.437 | E44: 0.045 | F44: 10 | G44: 11.202 | H44: 80 | I44: - | J44: - | K44: 0.022 | L44: 0.5 | M44: 正常
A45: =MAX($A$3:A44)+1 -> 29 | B45: 惠州德贝辰电子有限公司 | C45: 总排放口 | D45: 6.912 | E45: 0.036 | F45: 15 | G45: 24.22 | H45: 80 | I45: - | J45: - | K45: - | L45: - | M45: 正常
B46: 惠州德贝辰电子有限公司 | C46: 总镍排放口 | D46: 0 | E46: - | F46: - | G46: - | H46: - | I46: - | J46: - | K46: - | L46: - | M46: 正常
B47: 惠州德贝辰电子有限公司 | C47: 总铬排放口 | D47: 0 | E47: - | F47: - | G47: - | H47: - | I47: - | J47: - | K47: - | L47: - | M47: 正常
A48: =MAX($A$3:A47)+1 -> 30 | B48: 博罗县精汇电子科技有限公司 | C48: 综合废水排放口 | D48: 15.26 | E48: 0.173 | F48: 10 | G48: 10.595 | H48: 80 | I48: 2.666 | J48: 10 | K48: 0.014 | L48: 0.5 | M48: 正常
B49: 博罗县精汇电子科技有限公司 | C49: 车间废水排放口 | D49: 0 | E49: - | F49: - | G49: - | H49: - | I49: - | J49: - | K49: - | L49: - | M49: 正常
A50: =MAX($A$3:A49)+1 -> 31 | B50: 鼎富电子(惠州)有限公司 | C50: 污水排放口 | D50: 932.45 | E50: 0.645 | F50: 10 | G50: 21.041 | H50: 80 | I50: - | J50: - | K50: - | L50: - | M50: 正常
A51: =MAX($A$3:A50)+1 -> 32 | B51: 博罗县景科电子有限公司 | C51: 生产废水总排口 | D51: 248.83 | E51: 0.01 | F51: 10 | G51: 15.202 | H51: 80 | I51: 16.662 | J51: 20 | K51: 0.066 | L51: 1 | M51: 正常
B52: 博罗县景科电子有限公司 | C52: 含镍废水排放口 | D52: 25.834 | E52: - | F52: - | G52: - | H52: - | I52: - | J52: - | K52: - | L52: - | M52: 正常
A53: =MAX($A$3:A52)+1 -> 33 | B53: 东阳(博罗)电子有限公司 | C53: 排放口 | D53: 190.08 | E53: 0.065 | F53: 8 | G53: 22.36 | H53: 50 | I53: - | J53: - | K53: 0.074 | L53: 0.5 | M53: 正常
A54: =MAX($A$3:A53)+1 -> 34 | B54: 博罗县九潭芬迪漂染有限公司 | C54: 排放口 | D54: 247.97 | E54: 0.115 | F54: 10 | G54: 22.76 | H54: 80 | I54: 4.54 | J54: 15 | K54: 0.008 | L54: 0.5 | M54: 正常
A55: =MAX($A$3:A54)+1 -> 35 | B55: 博罗县九潭天羽漂染有限公司 | C55: 排放口 | D55: 976.32 | E55: 1.905 | F55: 10 | G55: 10.972 | H55: 80 | I55: 4.321 | J55: 15 | K55: - | L55: - | M55: 正常
A56: =MAX($A$3:A55)+1 -> 36 | B56: 惠州市骏亚精密电路有限公司 | C56: 综合废水总排放口 | D56: 496.237 | E56: 0.016 | F56: 10 | G56: 64.004 | H56: 80 | I56: - | J56: - | K56: - | L56: - | M56: 正常
A57: =MAX($A$3:A56)+1 -> 37 | B57: 博罗县力诚五金塑胶制品表面处理有限公司 | C57: 排放口 | D57: - | E57: 0 | F57: 15 | G57: 0 | H57: 80 | I57: - | J57: - | K57: - | L57: - | M57: 停机
A58: =MAX($A$3:A57)+1 -> 38 | B58: 博罗县龙溪镇宏辉五金塑胶制品有限公司 | C58: 排放口 | D58: - | E58: 0 | F58: 15 | G58: 0 | H58: 80 | I58: - | J58: - | K58: - | L58: - | M58: 停机
A59: =MAX($A$3:A58)+1 -> 39 | B59: 博罗县名威针织漂染厂 | C59: 排放口 | D59: 0 | E59: 1.321 | F59: 10 | G59: 11.263 | H59: 60 | I59: - | J59: - | K59: - | L59: - | M59: 正常
A60: =MAX($A$3:A59)+1 -> 40 | B60: 博罗县盛源金属表面处理有限公司 | C60: 排放口 | D60: - | E60: 0 | F60: 15 | G60: 0 | H60: 80 | I60: - | J60: - | K60: - | L60: - | M60: 停机
A61: =MAX($A$3:A60)+1 -> 41 | B61: 博罗县石湾日昌升制衣印花绣花厂 | C61: 排放口 | D61: 0 | E61: 0.075 | F61: 10 | G61: 14.83 | H61: 80 | I61: 0.15 | J61: 15 | K61: - | L61: - | M61: 正常
A62: =MAX($A$3:A61)+1 -> 42 | B62: 博罗县石湾源兴友联电镀五金制品厂 | C62: 综合废水排放口 | D62: 0 | E62: 0.068 | F62: 10 | G62: 9.574 | H62: 80 | I62: 2.49 | J62: 20 | K62: 0.073 | L62: 0.5 | M62: 停机
B63: 博罗县石湾源兴友联电镀五金制品厂 | C63: 含铬废水处理设施排放口 | D63: 0 | E63: - | F63: - | G63: - | H63: - | I63: - | J63: - | K63: - | L63: - | M63: 停机
B64: 博罗县石湾源兴友联电镀五金制品厂 | C64: 含镍废水处理设施排放口 | D64: 0 | E64: - | F64: - | G64: - | H64: - | I64: - | J64: - | K64: - | L64: - | M64: 停机
A65: =MAX($A$3:A64)+1 -> 43 | B65: 惠东县建祥电子科技有限公司 | C65: 废水总排放口 | D65: 135.648 | E65: 0.094 | F65: 10 | G65: 11.449 | H65: 80 | I65: - | J65: - | K65: - | L65: - | M65: 正常
B66: 惠东县建祥电子科技有限公司 | C66: 含镍废水排放口 | D66: 18.403 | E66: - | F66: - | G66: - | H66: - | I66: - | J66: - | K66: - | L66: - | M66: 正常
A67: =MAX($A$3:A66)+1 -> 44 | B67: 惠东县景钧五金制品厂 | C67: 总排放口 | D67: 4.386 | E67: 0.249 | F67: 15 | G67: 26.344 | H67: 80 | I67: - | J67: - | K67: - | L67: - | M67: 正常
A68: =MAX($A$3:A67)+1 -> 45 | B68: 惠东县其峰电镀厂 | C68: 总排放口 | D68: 0.605 | E68: 0.656 | F68: 15 | G68: 24.763 | H68: 80 | I68: - | J68: - | K68: - | L68: - | M68: 正常
B69: 惠东县其峰电镀厂 | C69: 含镍废水车间排放口 | D69: 0 | E69: - | F69: - | G69: - | H69: - | I69: - | J69: - | K69: - | L69: - | M69: 正常
B70: 惠东县其峰电镀厂 | C70: 含铬废水车间排放口 | D70: 0 | E70: - | F70: - | G70: - | H70: - | I70: - | J70: - | K70: - | L70: - | M70: 正常
A71: =MAX($A$3:A70)+1 -> 46 | B71: 惠东县西拓食品有限公司 | C71: 污水排放口 | D71: 168.38 | E71: 164.734 | F71: 500 | G71: 18.18 | H71: 500 | I71: 27.768 | J71: 500 | K71: 12.55 | L71: 200 | M71: 正常
A72: =MAX($A$3:A71)+1 -> 47 | B72: 惠东县永恒电镀厂 | C72: 废水排放口3 | D72: 14.006 | E72: 0.14 | F72: 15 | G72: 5.119 | H72: 80 | I72: - | J72: - | K72: - | L72: - | M72: 正常
B73: 惠东县永恒电镀厂 | C73: 废水排放口1 | D73: 0.578 | E73: - | F73: - | G73: - | H73: - | I73: - | J73: - | K73: - | L73: - | M73: 正常
B74: 惠东县永恒电镀厂 | C74: 废水排放口2 | D74: 0.005 | E74: - | F74: - | G74: - | H74: - | I74: - | J74: - | K74: - | L74: - | M74: 正常
A75: =MAX($A$3:A74)+1 -> 48 | B75: 惠东县中鑫科技电路有限公司 | C75: 生产废水总排放口 | D75: 40.32 | E75: 1.657 | F75: 10 | G75: 31.207 | H75: 80 | I75: - | J75: - | K75: - | L75: - | M75: 正常
B76: 惠东县中鑫科技电路有限公司 | C76: 车间含镍废水排放口 | D76: 0.327 | E76: - | F76: - | G76: - | H76: - | I76: - | J76: - | K76: - | L76: - | M76: 正常
A77: =MAX($A$3:A76)+1 -> 49 | B77: 惠阳科惠工业科技有限公司 | C77: 总排放口 | D77: 1907.71 | E77: 0.091 | F77: 8 | G77: 12.1 | H77: 50 | I77: - | J77: - | K77: - | L77: - | M77: 正常
B78: 惠阳科惠工业科技有限公司 | C78: 含镍废水排放口 | D78: 78.155 | E78: - | F78: - | G78: - | H78: - | I78: - | J78: - | K78: - | L78: - | M78: 正常
A79: =MAX($A$3:A78)+1 -> 50 | B79: 惠州南旋毛织厂有限公司 | C79: 综合废水排放口 | D79: 2197.15 | E79: 0.637 | F79: 10 | G79: 10.92 | H79: 80 | I79: - | J79: - | K79: - | L79: - | M79: 正常
A80: =MAX($A$3:A79)+1 -> 51 | B80: 惠阳区新圩华生五金电镀厂 | C80: 废水排放口 | D80: 29.578 | E80: 0.341 | F80: 15 | G80: 2.043 | H80: 80 | I80: 2.202 | J80: 20 | K80: - | L80: - | M80: 正常
B81: 惠阳区新圩华生五金电镀厂 | C81: 含镍废水排放口 | D81: 13.478 | E81: - | F81: - | G81: - | H81: - | I81: - | J81: - | K81: - | L81: - | M81: 正常
B82: 惠阳区新圩华生五金电镀厂 | C82: 含铬废水排放口 | D82: 50.544 | E82: - | F82: - | G82: - | H82: - | I82: - | J82: - | K82: - | L82: - | M82: 正常
A83: =MAX($A$3:A82)+1 -> 52 | B83: 惠州市惠阳区新圩南坑昌华电镀有限公司 | C83: 废水排放口 | D83: 50.98 | E83: 0.434 | F83: 15 | G83: 14.04 | H83: 80 | I83: - | J83: - | K83: - | L83: - | M83: 正常
B84: 惠州市惠阳区新圩南坑昌华电镀有限公司 | C84: 含铬废水车间排放口 | D84: 2.471 | E84: - | F84: - | G84: - | H84: - | I84: - | J84: - | K84: - | L84: - | M84: 正常
B85: 惠州市惠阳区新圩南坑昌华电镀有限公司 | C85: 含镍废水车间排放口 | D85: 0 | E85: - | F85: - | G85: - | H85: - | I85: - | J85: - | K85: - | L85: - | M85: 正常
A86: =MAX($A$3:A85)+1 -> 53 | B86: 惠阳区新圩庆邦雨伞五金电镀厂 | C86: 废水排放口 | D86: 58.666 | E86: 2.693 | F86: 15 | G86: 21.5 | H86: 80 | I86: - | J86: - | K86: - | L86: - | M86: 正常
B87: 惠阳区新圩庆邦雨伞五金电镀厂 | C87: 含镍废水排放口 | D87: 0 | E87: - | F87: - | G87: - | H87: - | I87: - | J87: - | K87: - | L87: - | M87: 正常
B88: 惠阳区新圩庆邦雨伞五金电镀厂 | C88: 含铬废水排放口 | D88: 0 | E88: - | F88: - | G88: - | H88: - | I88: - | J88: - | K88: - | L88: - | M88: 正常
A89: =MAX($A$3:A88)+1 -> 54 | B89: 惠州市翔达五金电镀有限公司 | C89: 废水排放口 | D89: 16 | E89: 0.507 | F89: 15 | G89: 21.629 | H89: 80 | I89: - | J89: - | K89: - | L89: - | M89: 正常
B90: 惠州市翔达五金电镀有限公司 | C90: 铬排放口 | D90: 0.86 | E90: - | F90: - | G90: - | H90: - | I90: - | J90: - | K90: - | L90: - | M90: 正常
B91: 惠州市翔达五金电镀有限公司 | C91: 镍排放口 | D91: 0.86 | E91: - | F91: - | G91: - | H91: - | I91: - | J91: - | K91: - | L91: - | M91: 正常
A92: =MAX($A$3:A91)+1 -> 55 | B92: 惠州市和信达线路板有限公司 | C92: 生产废水总排口 | D92: 206.496 | E92: 3.337 | F92: 15 | G92: 24.631 | H92: 80 | I92: - | J92: - | K92: - | L92: - | M92: 正常
A93: =MAX($A$3:A92)+1 -> 56 | B93: 惠州市弘国五金制品有限公司 | C93: 废水排放口 | D93: 71.453 | E93: 0.115 | F93: 15 | G93: 10.7 | H93: 80 | I93: - | J93: - | K93: - | L93: - | M93: 正常
B94: 惠州市弘国五金制品有限公司 | C94: 含铬废水排放口 | D94: 0.173 | E94: - | F94: - | G94: - | H94: - | I94: - | J94: - | K94: - | L94: - | M94: 正常
B95: 惠州市弘国五金制品有限公司 | C95: 含镍废水排放口 | D95: 12.442 | E95: - | F95: - | G95: - | H95: - | I95: - | J95: - | K95: - | L95: - | M95: 正常
A96: =MAX($A$3:A95)+1 -> 57 | B96: 惠州市仲恺高新区中心屠宰场 | C96: 污水排放口 | D96: 239.82 | E96: 4.502 | F96: 500 | G96: 28.2 | H96: 500 | I96: 9.058 | J96: 500 | K96: 0.297 | L96: 200 | M96: 正常
A97: =MAX($A$3:A96)+1 -> 58 | B97: 惠州市惠城区振雄五金电镀加工厂 | C97: 总排放口 | D97: 11.23 | E97: 1.914 | F97: 10 | G97: 7.298 | H97: 80 | I97: - | J97: - | K97: - | L97: - | M97: 正常
B98: 惠州市惠城区振雄五金电镀加工厂 | C98: 含镍废水排放口 | D98: 2.506 | E98: - | F98: - | G98: - | H98: - | I98: - | J98: - | K98: - | L98: - | M98: 正常
B99: 惠州市惠城区振雄五金电镀加工厂 | C99: 含铬废水排放口 | D99: 2.59 | E99: - | F99: - | G99: - | H99: - | I99: - | J99: - | K99: - | L99: - | M99: 正常
A100: =MAX($A$3:A99)+1 -> 59 | B100: 惠州市惠阳爱特电子有限公司 | C100: 生产废水总排口 | D100: 0 | E100: 0.682 | F100: 10 | G100: 27.373 | H100: 80 | I100: - | J100: - | K100: - | L100: - | M100: 正常
B101: 惠州市惠阳爱特电子有限公司 | C101: 车间含镍废水排放口 | D101: 0.77 | E101: - | F101: - | G101: - | H101: - | I101: - | J101: - | K101: - | L101: - | M101: 正常
A102: =MAX($A$3:A101)+1 -> 60 | B102: 惠州建邦精密塑胶有限公司 | C102: 排放口 | D102: - | E102: 0 | F102: 15 | G102: 0 | H102: 80 | I102: - | J102: - | K102: - | L102: - | M102: 停机
A103: =MAX($A$3:A102)+1 -> 61 | B103: 惠州市杰艺实业有限公司 | C103: 排放口 | D103: 0 | E103: 0.032 | F103: 10 | G103: 6.798 | H103: 80 | I103: 1.869 | J103: 15 | K103: 0.011 | L103: 0.5 | M103: 停机
A104: =MAX($A$3:A103)+1 -> 62 | B104: 惠州市金百泽电路科技有限公司 | C104: 排放口 | D104: 227.16 | E104: 0.013 | F104: 10 | G104: 11.784 | H104: 80 | I104: - | J104: - | K104: - | L104: - | M104: 正常
B105: 惠州市金百泽电路科技有限公司 | C105: 含镍废水排放口 | D105: 7.28 | E105: - | F105: - | G105: - | H105: - | I105: - | J105: - | K105: - | L105: - | M105: 正常
A106: =MAX($A$3:A105)+1 -> 63 | B106: 惠州市聚真电路板有限公司 | C106: 废水排放口 | D106: 137.36 | E106: 0.061 | F106: 10 | G106: 18.988 | H106: 80 | I106: - | J106: - | K106: - | L106: - | M106: 正常
A107: =MAX($A$3:A106)+1 -> 64 | B107: 惠州市俊达美电子科技有限公司 | C107: 排放口 | D107: 0.24 | E107: 2.12 | F107: 10 | G107: 6.69 | H107: 80 | I107: - | J107: - | K107: - | L107: - | M107: 正常
A108: =MAX($A$3:A107)+1 -> 65 | B108: 惠州市科迪盛科技有限公司 | C108: 排放口 | D108: 128 | E108: 0.684 | F108: 10 | G108: 3.059 | H108: 80 | I108: - | J108: - | K108: 0.007 | L108: 1 | M108: 正常
A109: =MAX($A$3:A108)+1 -> 66 | B109: 惠州市凌航达科技有限公司 | C109: 排放口 | D109: 170.64 | E109: 0.183 | F109: 10 | G109: 1.382 | H109: 80 | I109: 3.095 | J109: 20 | K109: 0.021 | L109: 1 | M109: 正常
A110: =MAX($A$3:A109)+1 -> 67 | B110: 博罗县桦阳环保有限公司（惠州市绿生源水质净化有限公司） | C110: 排放口 | D110: 7170.34 | E110: 0.98 | F110: 10 | G110: 21.677 | H110: 80 | I110: 5.46 | J110: 15 | K110: 0.186 | L110: 0.5 | M110: 正常
B111: 博罗县桦阳环保有限公司（惠州市绿生源水质净化有限公司） | C111: 进水口 | D111: 10926.14 | E111: 16.559 | F111: 1000 | G111: 154.223 | H111: 1000 | I111: - | J111: - | K111: - | L111: - | M111: 正常
A112: =MAX($A$3:A111)+1 -> 68 | B112: 惠州市南方水务有限公司（惠州市梅湖水质净化中心一二期） | C112: 废水排放口 | D112: 84689.922 | E112: 1.177 | F112: 5 | G112: 4.036 | H112: 40 | I112: 9.283 | J112: 15 | K112: 0.174 | L112: 0.5 | M112: 正常
B113: 惠州市南方水务有限公司（惠州市梅湖水质净化中心一二期） | C113: 一二期废水进水口 | D113: 93602.125 | E113: 8.812 | F113: 50 | G113: 437.519 | H113: 1000 | I113: - | J113: - | K113: - | L113: - | M113: 正常
A114: =MAX($A$3:A113)+1 -> 69 | B114: 惠州市普来德电子有限公司 | C114: 废水排放口 | D114: 0 | E114: 0.19 | F114: 15 | G114: 12.26 | H114: 80 | I114: 3.472 | J114: 20 | K114: 0.135 | L114: 1 | M114: 正常
A115: =MAX($A$3:A114)+1 -> 70 | B115: 惠州市肉联厂有限公司 | C115: 屠宰废水排口 | D115: 439.78 | E115: 0.084 | F115: 5 | G115: 19.11 | H115: 50 | I115: - | J115: - | K115: 0.169 | L115: 0.5 | M115: 正常
A116: =MAX($A$3:A115)+1 -> 71 | B116: 惠州市三强线路有限公司 | C116: 生产废水总排口 | D116: 469.15 | E116: 0.449 | F116: 10 | G116: 7.946 | H116: 80 | I116: - | J116: - | K116: - | L116: - | M116: 正常
B117: 惠州市三强线路有限公司 | C117: 含镍废水排放口 | D117: 41.28 | E117: - | F117: - | G117: - | H117: - | I117: - | J117: - | K117: - | L117: - | M117: 正常
A118: =MAX($A$3:A117)+1 -> 72 | B118: 惠州市深水金山污水处理有限公司 | C118: 总排放口 | D118: 48250.08 | E118: 0.028 | F118: 2 | G118: 12.5 | H118: 40 | I118: 9.307 | J118: 15 | K118: 0.139 | L118: 0.4 | M118: 正常
B119: 惠州市深水金山污水处理有限公司 | C119: 总进水口 | D119: 76498.32 | E119: 22.17 | F119: 50 | G119: 253 | H119: 1000 | I119: - | J119: - | K119: - | L119: - | M119: 正常
A120: =MAX($A$3:A119)+1 -> 73 | B120: 惠州市圣丰线路板制造有限公司 | C120: 总排放口 | D120: 149.557 | E120: 2.623 | F120: 10 | G120: 51.446 | H120: 80 | I120: - | J120: - | K120: - | L120: - | M120: 正常
A121: =MAX($A$3:A120)+1 -> 74 | B121: 惠州市特创电子科技有限公司 | C121: 综合污水排放口 | D121: 180.58 | E121: 0.014 | F121: 10 | G121: 23.15 | H121: 80 | I121: - | J121: - | K121: - | L121: - | M121: 正常
B122: 惠州市特创电子科技有限公司 | C122: 含镍废水排放口 | D122: 0 | E122: - | F122: - | G122: - | H122: - | I122: - | J122: - | K122: - | L122: - | M122: 正常
A123: =MAX($A$3:A122)+1 -> 75 | B123: 惠州市协昌电子有限公司 | C123: 废水排放口 | D123: 570.072 | E123: 0.148 | F123: 10 | G123: 24.59 | H123: 80 | I123: - | J123: - | K123: - | L123: - | M123: 正常
B124: 惠州市协昌电子有限公司 | C124: 含镍废水排放口 | D124: 95.9 | E124: - | F124: - | G124: - | H124: - | I124: - | J124: - | K124: - | L124: - | M124: 正常
A125: =MAX($A$3:A124)+1 -> 76 | B125: 惠州市新嘉利纺织有限公司 | C125: 梅纺污水集中处理站 | D125: 14.239 | E125: - | F125: - | G125: - | H125: - | I125: - | J125: - | K125: - | L125: - | M125: 正常
A126: =MAX($A$3:A125)+1 -> 77 | B126: 惠州市新雄基五金塑胶制品有限公司 | C126: 综合废水排放口 | D126: 50.98 | E126: 0.4 | F126: 10 | G126: 23 | H126: 80 | I126: - | J126: - | K126: - | L126: - | M126: 正常
A127: =MAX($A$3:A126)+1 -> 78 | B127: 惠州市星之光科技有限公司 | C127: 废水排放口 | D127: 449.28 | E127: 0.15 | F127: 10 | G127: 58.98 | H127: 80 | I127: - | J127: - | K127: - | L127: - | M127: 正常
A128: =MAX($A$3:A127)+1 -> 79 | B128: 惠州威健电路板实业有限公司 | C128: 污水排放口 | D128: 377 | E128: 0.201 | F128: 8 | G128: 11.748 | H128: 50 | I128: - | J128: - | K128: - | L128: - | M128: 正常
B129: 惠州威健电路板实业有限公司 | C129: 含镍废水排放口 | D129: 0.778 | E129: - | F129: - | G129: - | H129: - | I129: - | J129: - | K129: - | L129: - | M129: 正常
A130: =MAX($A$3:A129)+1 -> 80 | B130: 惠州新泰美纺织有限公司 | C130: 排放口 | D130: 608.26 | E130: 1.188 | F130: 10 | G130: 21.478 | H130: 80 | I130: - | J130: - | K130: - | L130: - | M130: 正常
A131: =MAX($A$3:A130)+1 -> 81 | B131: 惠州益伸电子有限公司 | C131: 废水排放口 | D131: 29 | E131: 0.037 | F131: 10 | G131: 24.42 | H131: 80 | I131: - | J131: - | K131: - | L131: - | M131: 正常
B132: 惠州益伸电子有限公司 | C132: 含镍废水排放口 | D132: 0 | E132: - | F132: - | G132: - | H132: - | I132: - | J132: - | K132: - | L132: - | M132: 正常
B133: 惠州益伸电子有限公司 | C133: 含铬废水排放口 | D133: 72.58 | E133: - | F133: - | G133: - | H133: - | I133: - | J133: - | K133: - | L133: - | M133: 正常
A134: =MAX($A$3:A133)+1 -> 82 | B134: 惠阳源高电器有限公司 | C134: 废水总排放口 | D134: 44.237 | E134: 0.031 | F134: 10 | G134: 4.62 | H134: 80 | I134: 7.336 | J134: 20 | K134: 0.002 | L134: 1 | M134: 正常
B135: 惠阳源高电器有限公司 | C135: 总镍排放口 | D135: 6.05 | E135: - | F135: - | G135: - | H135: - | I135: - | J135: - | K135: - | L135: - | M135: 正常
B136: 惠阳源高电器有限公司 | C136: 总铬排放口 | D136: 5.18 | E136: - | F136: - | G136: - | H136: - | I136: - | J136: - | K136: - | L136: - | M136: 正常
A137: =MAX($A$3:A136)+1 -> 83 | B137: 俊杰电子（惠州）有限公司 | C137: 生产废水总排放口 | D137: 91.03 | E137: 1.965 | F137: 10 | G137: 20.006 | H137: 80 | I137: - | J137: - | K137: - | L137: - | M137: 正常
A138: =MAX($A$3:A137)+1 -> 84 | B138: 科罗贝电子(惠州)有限公司 | C138: 生产废水排放口 | D138: 12.182 | E138: 0.034 | F138: 10 | G138: 4.24 | H138: 80 | I138: - | J138: - | K138: - | L138: - | M138: 正常
A139: =MAX($A$3:A138)+1 -> 85 | B139: 惠州中京电子科技有限公司 | C139: 废水排放口 | D139: 1302.05 | E139: 0.04 | F139: 30 | G139: 23.551 | H139: 160 | I139: - | J139: - | K139: - | L139: - | M139: 正常
A140: =MAX($A$3:A139)+1 -> 86 | B140: 惠州中京电子科技有限公司惠城分公司 | C140: 总排放口 | D140: - | E140: 0 | F140: 15 | G140: 0 | H140: 80 | I140: - | J140: - | K140: - | L140: - | M140: 停机
A141: =MAX($A$3:A140)+1 -> 87 | B141: 龙景织带（惠州）有限公司 | C141: 废水排放口 | D141: 50.256 | E141: 4.604 | F141: 8 | G141: 2.448 | H141: 60 | I141: 2.994 | J141: 15 | K141: 0.01 | L141: 0.5 | M141: 正常
A142: =MAX($A$3:A141)+1 -> 88 | B142: 致丰织染（博罗）有限公司 | C142: 排放口 | D142: 288.58 | E142: 0.158 | F142: 10 | G142: 15.57 | H142: 80 | I142: 3.71 | J142: 10 | K142: 0.031 | L142: 0.5 | M142: 正常
A143: =MAX($A$3:A142)+1 -> 89 | B143: 惠州市旭升电镀厂有限公司 | C143: 综合废水排放口 | D143: 32.486 | E143: 0.386 | F143: 10 | G143: 7.5 | H143: 80 | I143: - | J143: - | K143: - | L143: - | M143: 正常
B144: 惠州市旭升电镀厂有限公司 | C144: 含镍排放口 | D144: 12.528 | E144: - | F144: - | G144: - | H144: - | I144: - | J144: - | K144: - | L144: - | M144: 正常
B145: 惠州市旭升电镀厂有限公司 | C145: 含铬排放口 | D145: 12.355 | E145: - | F145: - | G145: - | H145: - | I145: - | J145: - | K145: - | L145: - | M145: 正常
A146: =MAX($A$3:A145)+1 -> 90 | B146: 智恩电子（大亚湾）有限公司 | C146: 污水排放口 | D146: 1700.27 | E146: 0.832 | F146: 10 | G146: 45.461 | H146: 80 | I146: - | J146: - | K146: - | L146: - | M146: 正常
A147: =MAX($A$3:A146)+1 -> 91 | B147: 惠州市永隆电路有限公司 | C147: 废水排放口 | D147: 4.666 | E147: 0.071 | F147: 15 | G147: 31.56 | H147: 80 | I147: 5.523 | J147: 20 | K147: - | L147: - | M147: 正常
A148: =MAX($A$3:A147)+1 -> 92 | B148: 惠州市永生五金制品厂 | C148: 总排放口 | D148: - | E148: 0 | F148: 15 | G148: 0 | H148: 80 | I148: - | J148: - | K148: - | L148: - | M148: 停机
A149: =MAX($A$3:A148)+1 -> 93 | B149: 惠州市长和五金电子有限公司 | C149: 废水排放口 | D149: 225.5 | E149: 3.953 | F149: 15 | G149: 16.8 | H149: 80 | I149: 5.738 | J149: 20 | K149: 0.025 | L149: 1 | M149: 正常
B150: 惠州市长和五金电子有限公司 | C150: 含铬废水预处理排放口 | D150: 67.39 | E150: - | F150: - | G150: - | H150: - | I150: - | J150: - | K150: - | L150: - | M150: 正常
B151: 惠州市长和五金电子有限公司 | C151: 重金属废水预处理排放口 | D151: 16.42 | E151: - | F151: - | G151: - | H151: - | I151: - | J151: - | K151: - | L151: - | M151: 正常
A152: =MAX($A$3:A151)+1 -> 94 | B152: 惠州市正兴电子科技有限公司 | C152: 生产废水总排口 | D152: 137.981 | E152: 0.295 | F152: 10 | G152: 21.106 | H152: 80 | I152: - | J152: - | K152: - | L152: - | M152: 正常
A153: =MAX($A$3:A152)+1 -> 95 | B153: 惠州市智恒五金电镀有限公司 | C153: 废水排放口 | D153: 0 | E153: 0.032 | F153: 15 | G153: 21.4 | H153: 80 | I153: - | J153: - | K153: - | L153: - | M153: 正常
B154: 惠州市智恒五金电镀有限公司 | C154: 含镍废水排放口 | D154: - | E154: - | F154: - | G154: - | H154: - | I154: - | J154: - | K154: - | L154: - | M154: 正常
B155: 惠州市智恒五金电镀有限公司 | C155: 含铬废水排放口 | D155: 0 | E155: - | F155: - | G155: - | H155: - | I155: - | J155: - | K155: - | L155: - | M155: 正常
A156: =MAX($A$3:A155)+1 -> 96 | B156: 惠州市中川力天绳带有限公司 | C156: 综合废水排放口 | D156: 14.239 | E156: - | F156: - | G156: - | H156: - | I156: - | J156: - | K156: - | L156: - | M156: 正常
A157: =MAX($A$3:A156)+1 -> 97 | B157: 惠州市众信天成电子发展有限公司 | C157: 排放口 | D157: 51 | E157: 0.013 | F157: 10 | G157: 10.082 | H157: 80 | I157: - | J157: - | K157: 0.01 | L157: 1 | M157: 正常
A158: =MAX($A$3:A157)+1 -> 98 | B158: 南泰印整(惠州)有限公司 | C158: 排放口 | D158: 576.288 | E158: 0.034 | F158: 10 | G158: 12.61 | H158: 80 | I158: 3.387 | J158: 15 | K158: - | L158: - | M158: 正常
A159: =MAX($A$3:A158)+1 -> 99 | B159: 启兴（博罗）金属制品有限公司 | C159: 排放口 | D159: 155.434 | E159: 0.076 | F159: 10 | G159: 1.05 | H159: 80 | I159: 0.314 | J159: 20 | K159: 0.023 | L159: 0.5 | M159: 正常
B160: 启兴（博罗）金属制品有限公司 | C160: 含银废水排放口 | D160: 8.364 | E160: - | F160: - | G160: - | H160: - | I160: - | J160: - | K160: - | L160: - | M160: 正常
B161: 启兴（博罗）金属制品有限公司 | C161: 含镍废水排放口 | D161: 0 | E161: - | F161: - | G161: - | H161: - | I161: - | J161: - | K161: - | L161: - | M161: 正常
B162: 启兴（博罗）金属制品有限公司 | C162: 含铬废水排放口 | D162: 232.42 | E162: - | F162: - | G162: - | H162: - | I162: - | J162: - | K162: - | L162: - | M162: 正常
A163: =MAX($A$3:A162)+1 -> 100 | B163: 荣晖电子（惠州）有限公司 | C163: 废水排放口 | D163: 4.493 | E163: 0.01 | F163: 10 | G163: 13.129 | H163: 80 | I163: 0.382 | J163: 20 | K163: - | L163: - | M163: 正常
A164: =MAX($A$3:A163)+1 -> 101 | B164: 星华科技(惠州)有限公司 | C164: 污水排放口 | D164: 245.27 | E164: 0.262 | F164: 15 | G164: 27.188 | H164: 50 | I164: - | J164: - | K164: - | L164: - | M164: 正常
A165: =MAX($A$3:A164)+1 -> 102 | B165: 长鸿电子科技（惠州）有限公司 | C165: 排放口 | D165: 109 | E165: 0.755 | F165: 10 | G165: 19.771 | H165: 80 | I165: - | J165: - | K165: 0.048 | L165: 1 | M165: 正常
A166: =MAX($A$3:A165)+1 -> 103 | B166: 嘉士伯啤酒（广东）有限公司 | C166: 综合废水排放口 | D166: 302.4 | E166: 0.018 | F166: 15 | G166: 44.424 | H166: 80 | I166: - | J166: - | K166: - | L166: - | M166: 正常
A167: =MAX($A$3:A166)+1 -> 104 | B167: 建业科技电子（惠州）有限公司 | C167: 废水排放口 | D167: 1359.7 | E167: 0.085 | F167: 10 | G167: 30.2 | H167: 80 | I167: - | J167: - | K167: - | L167: - | M167: 正常
B168: 建业科技电子（惠州）有限公司 | C168: 含镍废水排放口 | D168: 16.08 | E168: - | F168: - | G168: - | H168: - | I168: - | J168: - | K168: - | L168: - | M168: 正常
A169: =MAX($A$3:A168)+1 -> 105 | B169: 健荣针织染整（惠州）有限公司 | C169: 排放口 | D169: 100.22 | E169: 0.036 | F169: 10 | G169: 6.88 | H169: 80 | I169: 2.254 | J169: 15 | K169: 0.025 | L169: 0.5 | M169: 正常
A170: =MAX($A$3:A169)+1 -> 106 | B170: 金利兴（惠州）制衣有限公司 | C170: 排放口 | D170: 875.23 | E170: 0.856 | F170: 15 | G170: 12.67 | H170: 60 | I170: 1.528 | J170: 15 | K170: - | L170: - | M170: 正常
A171: =MAX($A$3:A170)+1 -> 107 | B171: 山河饰品(惠州)有限公司 | C171: 废水排放口 | D171: 40.212 | E171: 0.147 | F171: 15 | G171: 12.714 | H171: 80 | I171: - | J171: - | K171: - | L171: - | M171: 正常
A172: =MAX($A$3:A171)+1 -> 108 | B172: 申泰电子(惠州)有限公司 | C172: 综合排放口 | D172: 19.181 | E172: 0.01 | F172: 10 | G172: 14.468 | H172: 80 | I172: - | J172: - | K172: 0.046 | L172: 1 | M172: 正常
B173: 申泰电子(惠州)有限公司 | C173: 含镍废水排放口 | D173: 11.629 | E173: - | F173: - | G173: - | H173: - | I173: - | J173: - | K173: - | L173: - | M173: 正常
A174: =MAX($A$3:A173)+1 -> 109 | B174: 胜宏科技(惠州)股份有限公司 | C174: 生产废水总排放口 | D174: 3569.161 | E174: 3.706 | F174: 16 | G174: 60.723 | H174: 100 | I174: - | J174: - | K174: - | L174: - | M174: 正常
B175: 胜宏科技(惠州)股份有限公司 | C175: 车间废水排放口 | D175: 5.18 | E175: - | F175: - | G175: - | H175: - | I175: - | J175: - | K175: - | L175: - | M175: 正常
B176: 胜宏科技(惠州)股份有限公司 | C176: 车间废水排放口② | D176: 0 | E176: - | F176: - | G176: - | H176: - | I176: - | J176: - | K176: - | L176: - | M176: 正常
A177: =MAX($A$3:A176)+1 -> 110 | B177: 胜华电子（惠阳）有限公司 | C177: 总排放口 | D177: 735.26 | E177: 0.305 | F177: 10 | G177: 44.316 | H177: 80 | I177: - | J177: - | K177: - | L177: - | M177: 正常
A178: =MAX($A$3:A177)+1 -> 111 | B178: 双鸿电子(惠州)有限公司 | C178: 污水排放口 | D178: 148.67 | E178: 0.028 | F178: 8 | G178: 15.126 | H178: 50 | I178: - | J178: - | K178: - | L178: - | M178: 正常
A179: =MAX($A$3:A178)+1 -> 112 | B179: 泰和电路科技（惠州）有限公司 | C179: 生产废水排放口 | D179: 604.714 | E179: 0.045 | F179: 10 | G179: 21.315 | H179: 80 | I179: - | J179: - | K179: - | L179: - | M179: 正常
B180: 泰和电路科技（惠州）有限公司 | C180: 车间废水排放口 | D180: 139.723 | E180: - | F180: - | G180: - | H180: - | I180: - | J180: - | K180: - | L180: - | M180: 正常
A181: =MAX($A$3:A180)+1 -> 113 | B181: 博罗县天俊纺织漂染厂 | C181: 排放口 | D181: - | E181: 0 | F181: 10 | G181: 0 | H181: 80 | I181: - | J181: - | K181: - | L181: - | M181: 停机
A182: =MAX($A$3:A181)+1 -> 114 | B182: 通元科技（惠州）有限公司 | C182: 生产废水排放口 | D182: 718.85 | E182: 4.347 | F182: 10 | G182: 28.29 | H182: 80 | I182: - | J182: - | K182: - | L182: - | M182: 正常
A183: =MAX($A$3:A182)+1 -> 115 | B183: 同健（惠阳）电子有限公司 | C183: 总排放口 | D183: 868.32 | E183: 2.24 | F183: 10 | G183: 38.21 | H183: 80 | I183: - | J183: - | K183: - | L183: - | M183: 正常
B184: 同健（惠阳）电子有限公司 | C184: 含镍废水排放口 | D184: 8.64 | E184: - | F184: - | G184: - | H184: - | I184: - | J184: - | K184: - | L184: - | M184: 正常
A185: =MAX($A$3:A184)+1 -> 116 | B185: 统将（惠阳）电子有限公司 | C185: 生产废水排放口 | D185: 921.89 | E185: 1.801 | F185: 10 | G185: 32.18 | H185: 80 | I185: - | J185: - | K185: - | L185: - | M185: 正常
B186: 统将（惠阳）电子有限公司 | C186: 含镍废水排放口 | D186: 0 | E186: - | F186: - | G186: - | H186: - | I186: - | J186: - | K186: - | L186: - | M186: 正常
A187: =MAX($A$3:A186)+1 -> 117 | B187: 万合纺织染整（惠州）有限公司 | C187: 排放口 | D187: 32.256 | E187: 1.154 | F187: 10 | G187: 26.252 | H187: 80 | I187: 4.652 | J187: 15 | K187: - | L187: - | M187: 正常
A188: =MAX($A$3:A187)+1 -> 118 | B188: 微迅电子（惠州）有限公司 | C188: 排放口 | D188: 253.411 | E188: 0.105 | F188: 1.5 | G188: 7.3 | H188: 30 | I188: - | J188: - | K188: - | L188: - | M188: 正常
A189: =MAX($A$3:A188)+1 -> 119 | B189: 中海油惠州石化有限公司 | C189: 废水总排放口 | D189: - | E189: 0 | F189: 8 | G189: 0 | H189: 60 | I189: - | J189: - | K189: - | L189: - | M189: 停机
B190: 中海油惠州石化有限公司 | C190: 污水处理场（II）废水总排放口 | D190: 9484.839 | E190: - | F190: - | G190: 38.492 | H190: 60 | I190: - | J190: - | K190: - | L190: - | M190: 正常
A191: =MAX($A$3:A190)+1 -> 120 | B191: 中海壳牌石油化工有限公司 | C191: UT1装置污水处理场总排口 | D191: 9592.042 | E191: 0.151 | F191: 8 | G191: 27.569 | H191: 60 | I191: - | J191: - | K191: - | L191: - | M191: 正常
A192: =MAX($A$3:A191)+1 -> 121 | B192: 惠州合正电子科技有限公司 | C192: 工业废水排放口 | D192: 578.88 | E192: 0.663 | F192: 15 | G192: 11.18 | H192: 80 | I192: - | J192: - | K192: - | L192: - | M192: 正常
A193: =MAX($A$3:A192)+1 -> 122 | B193: 惠州市鸿润五金家具有限公司 | C193: 排放口 | D193: 130.46 | E193: 0.022 | F193: 10 | G193: 0.692 | H193: 80 | I193: - | J193: - | K193: - | L193: - | M193: 正常
B194: 惠州市鸿润五金家具有限公司 | C194: 含铬废水排放口 | D194: 20.43 | E194: - | F194: - | G194: - | H194: - | I194: - | J194: - | K194: - | L194: - | M194: 正常
B195: 惠州市鸿润五金家具有限公司 | C195: 含镍废水排放口 | D195: 14.51 | E195: - | F195: - | G195: - | H195: - | I195: - | J195: - | K195: - | L195: - | M195: 正常
B196: 惠州市鸿润五金家具有限公司 | C196: 重金属混合废水排放口 | D196: 3.79 | E196: - | F196: - | G196: - | H196: - | I196: - | J196: - | K196: - | L196: - | M196: 正常
A197: =MAX($A$3:A196)+1 -> 123 | B197: 惠州市源辉五金电镀有限公司/惠阳区新圩鑫隆五金制品加工厂/惠州市惠阳区坑塘电镀厂 | C197: 含镍废水排放口 | D197: 189.78 | E197: - | F197: - | G197: - | H197: - | I197: - | J197: - | K197: - | L197: - | M197: 正常
B198: 惠州市源辉五金电镀有限公司/惠阳区新圩鑫隆五金制品加工厂/惠州市惠阳区坑塘电镀厂 | C198: 含铬废水排放口 | D198: 551.46 | E198: - | F198: - | G198: - | H198: - | I198: - | J198: - | K198: - | L198: - | M198: 正常
B199: 惠州市源辉五金电镀有限公司/惠阳区新圩鑫隆五金制品加工厂/惠州市惠阳区坑塘电镀厂 | C199: 废水排放口 | D199: 363.313 | E199: 0.83 | F199: 8 | G199: 2.5 | H199: 50 | I199: - | J199: - | K199: - | L199: - | M199: 正常
A200: =MAX($A$3:A199)+1 -> 124 | B200: 惠州宝信科技电子有限公司 | C200: 污水排放口 | D200: 35.253 | E200: 0.031 | F200: 10 | G200: 1.405 | H200: 80 | I200: - | J200: - | K200: - | L200: - | M200: 正常
... 67 more rows
